Workbook

Sheet 1
A1: Школа | B1: ГБОУ "Маскаринская школа -интернат для детей с ОВЗ" | E1: Отд./корп | F1: 10 день | I1: День | J1: 23.11.2022.
A3: Прием пищи | B3: Раздел | C3: № рец. | D3: Блюдо | E3: Выход, г | F3: Цена | G3: Калорийность | H3: Белки | I3: Жиры | J3: Углеводы
A4: Завтрак | B4: хлеб пшен | C4: 37 | D4: Хлеб пшеничный | E4: 120 | F4: 4.92 | G4: 94.7 | H4: 3.1 | I4: 0.2 | J4: 20.1
B5: омлет | C5: 19 | D5: Омлет | E5: 200 | F5: 18.00 | G5: 200 | H5: 16.6 | I5: 18.24 | J5: 2.88
B6: масло слив | C6: 50 | D6: Масло слив. | E6: 15 | F6: 8.38 | G6: 700 | H6: 0.4 | I6: 62.5 | J6: 0.8
B7: фрукт | C7: 61 | D7: Апельсин | E7: 100 | F7: 11.11 | G7: 34.2 | H7: 1.4 | I7: 0.3 | J7: 8.1
B8: гор напиток | C8: 51 | D8: Чай слад. | E8: 200 | F8: 1.50 | G8: 39.9 | H8: 0.1 | I8: 0 | J8: 9.9
B9: сыр | C9: 48 | D9: Сыр | E9: 24 | F9: 13.94 | G9: 67.4 | H9: 4.3 | I9: 5.4 | J9: 0
G10: =SUM(G4:G9) -> 1136.2 | H10: =SUM(H4:H9) -> 25.9 | I10: 86.64 | J10: 41.78
A11: Завтрак 2 | B11: напиток | C11: 57 | D11: Сок | E11: 200 | F11: 15.87 | G11: 94 | H11: 0.8 | I11: 0 | J11: 23
B12: хлеб | C12: 37 | D12: Хлеб пшеничный | E12: 160 | F12: 6.56 | G12: 94.7 | H12: 3.1 | I12: 0.2 | J12: 20.1
B13: фрукт | C13: 62 | D13: Банан | E13: 100 | F13: 10.18 | G13: 64.2 | H13: 1.4 | I13: 0.3 | J13: 12.1
B14: выпечка | C14: 38 | D14: Ватрушки с карт. | E14: 80 | F14: 14.06 | G14: 95 | H14: 5.4 | I14: 5.8 | J14: 32.4
G15: =SUM(G11:G14) -> 347.9 | H15: =SUM(H11:H14) -> 10.7 | I15: 6.3 | J15: 87.6
A16: Обед | B16: 1 блюдо | C16: 4 | D16: Рассольник к/м с перл. со смет. | E16: 250/10 | F16: 21,76/2,85 | G16: 132.3 | H16: 4.65 | I16: 10.01 | J16: 10.08
B17: 2блюдо | C17: 18 | D17: Макароны отварные | E17: 200/10 | F17: 2/5,59 | G17: 150.7 | H17: 7.6 | I17: 9.2 | J17: 48.8
B18: гарнир | C18: 77 | D18: Рыбные тефтели | E18: 70/70 | F18: 75.27 | G18: 95.1 | H18: 12.7 | I18: 5.2 | J18: 4.4
B19: хлеб дар. | C19: 36 | D19: Хлеб "Дарницкий" | E19: 80 | F19: 2.87 | G19: 81.6 | H19: 2.6 | I19: 0.4 | J19: 17
B20: напиток | C20: 53 | D20: Компот из смеси с/ф | E20: 200 | F20: 6.00 | G20: 110 | H20: 4 | I20: 0.06 | J20: 35.2
B21: салат | C21: 33 | D21: Салат из вар. Свеклы | E21: 100 | F21: 3.00 | G21: 64.2 | H21: 1.8 | I21: 10 | J21: 10
G22: =SUM(G16:G21) -> 633.9 | H22: =SUM(H16:H21) -> 33.35 | I22: 34.87 | J22: 125.48
A23: Полдник | B23: кисломол. | C23: 58 | D23: Ряженка | E23: 200 | F23: 17.54 | G23: 80 | H23: 12 | I23: 2 | J23: 8.4
B24: фрукт | C24: 60 | D24: Яблоки св | E24: 100 | F24: 5.69 | G24: 68.6 | H24: 0.6 | I24: 0.6 | J24: 14.3
G25: =SUM(G23:G24) -> 148.6 | H25: =SUM(H23:H24) -> 12.6 | I25: 2.6 | J25: 22.7
A27: Ужин | B27: хлеб | C27: 36 | D27: Хлеб "Дарницкий" | E27: 80 | F27: 2.87 | G27: 81.6 | H27: 2.6 | I27: 0.4 | J27: 17
B28: масло слив | C28: 50 | D28: Масло слив. | E28: 15 | F28: 8.38 | G28: 700 | H28: 0.4 | I28: 62.5 | J28: 0.8
B29: гор напиток | C29: 52 | D29: Чай с молоком | E29: 200 | F29: 8.03 | G29: 30 | H29: 1.64 | I29: 1.64 | J29: 2.38
B30: 2 блюдо | C30: 71 | D30: Гороховое пюре | E30: 200/11 | F30: 18.00 | G30: 283.1 | H30: 17.70 | I30: 14.2 | J30: 27.4
D31: с мясным фаршем говяд.
G32: =SUM(G27:G31) -> 1094.7 | H32: =SUM(H27:H31) -> 22.34 | I32: 78.74 | J32: 47.58
